Cogmind - Beta 16.1 @@@ ROGUE MODE // 2026.04.07 @ 22:41:56 Player: f3-rnm Result: Destroyed by 5G-ZN9(R) with Subdweller Shrapnel Launcher Performance ------------- Evolutions (0) 0 Regions Visited (2) 400 Robots Destroyed (24) 120 Value Destroyed (657) 657 Prototype IDs (0) 0 Alien Tech Used (0) 0 Bonus (-52) -52 TOTAL SCORE: 1125 Bonus ------- Friendly Fire -52 Cogmind --------- Core Integrity 0/250 Matter 264/300 Energy 100/100 System Corruption 0% Temperature Cool (0) Movement Rolling (135) Ox3 Location -10/Subcaves Parts ------- > --- POWER (1) -------- Subdweller Power Source > --- PROPULSION (2) --- Wheel Compact Wheel > --- UTILITY (2) ------ Huge Storage Unit Core Shielding > --- WEAPON (2) ------- Spread Laser > --- INVENTORY (25) --- Heat Sink Small Storage Unit Medium Matter Pod (89) Medium Matter Pod (0) Medium Matter Pod (0) Medium Matter Pod (0) Medium Matter Pod (0) Medium Matter Pod (0) Medium Matter Pod (0) Medium Matter Pod (0) Sensor Array Scrap Shield Spread Laser Beam Cannon Shotgun Shotgun Shotgun Subdweller Shrapnel Launcher Peak State ------------ > --- POWER ------------ Subdweller Power Source > --- PROPULSION ------- Compact Wheel Subdweller Monowheel > --- UTILITY ---------- Heat Sink Huge Storage Unit > --- WEAPON ----------- Spread Laser Spread Laser > --- INVENTORY -------- Wheel Compact Wheel Small Storage Unit Medium Matter Pod Medium Matter Pod Medium Matter Pod Medium Matter Pod Medium Matter Pod Medium Matter Pod Medium Matter Pod Medium Matter Pod Sensor Array Core Shielding Spread Laser Beam Cannon Shotgun Shotgun Shotgun [Rating: 13] Favorites ----------- Power Subdweller Power Source Engine Subdweller Power Source Propulsion Compact Wheel Treads Light Treads Wheel Compact Wheel Utility Huge Storage Unit Device Heat Sink Storage Huge Storage Unit Protection Core Shielding Weapon Spread Laser Energy Gun Spread Laser Energy Cannon Beam Cannon Ballistic Gun Light Assault Rifle Launcher Subdweller Shrapnel Launcher Build | -11 -10 -10 ------- Run | Yrd Mat Sub Slots Evolved . | . . . Power . | . . . Propulsion . | . . . Utility . | . . . Weapon . | . . . Parts Attached 20 | 6 8 6 Power 2 | 1 . 1 Engine 2 | 1 . 1 Core . | . . . Reactor . | . . . Propulsion 6 | 2 1 3 Treads 2 | 2 . . Leg . | . . . Wheel 4 | . 1 3 Hover . | . . . Flight . | . . . Utility 4 | 1 3 . Device 1 | . 1 . Storage 2 | 1 1 . Processor . | . . . Hackware . | . . . Protection 1 | . 1 . Artifact . | . . . Weapon 8 | 2 4 2 Energy Gun 4 | 1 3 . Energy Cannon 1 | . . 1 Ballistic Gun 2 | 1 1 . Ballistic Cannon . | . . . Launcher 1 | . . 1 Special Weapon . | . . . Impact Weapon . | . . . Slashing Weapon . | . . . Piercing Weapon . | . . . Special Melee Weapon . | . . . Unidentified Prototypes . | . . . Parts Lost 6 | . 2 4 Power 1 | . 1 . Propulsion 3 | . 1 2 Utility . | . . . Weapon 2 | . . 2 Highest Loss Streak 2 | . 1 2 To Critical Strikes . | . . . Average Backups 16 | 1 12 18 Power . | . . . Propulsion 1 | 1 1 1 Utility 9 | . 5 11 Weapon 5 | . 5 5 Tool/Special . | . . . Unused Backups 13 | . . 13 Power . | . . . Propulsion . | . . . Utility 10 | . . 10 Weapon 3 | . . 3 Tool/Special . | . . . Average Slot Usage (%) 92 | . 88 93 Engine 8 | . 8 8 Treads 9 | . 16 5 Wheel 18 | . 10 22 Device 5 | . 5 6 Storage 14 | . 14 14 Protection 6 | . 5 7 Energy Gun 27 | . 26 27 Peak Build Rating 13 | 6 11 13 Average Rating 10 | 4 9 11 On Entrance 5 | . 6 10 Avg Prop Armor Cover (%) 15 | . 14 16 Naked Turns . | . . . Heaviest Build 97 | 12 92 97 Greatest Support 40 | 40 40 36 Greatest Overweight (x) 5 | . 5 5 Average Overweight (x) 3 | . 2 3 Largest Inventory Capacity 25 | 8 25 25 Average Capacity 22 | 7 17 25 Most Carried 21 | 2 19 21 Average Carried 16 | 1 12 19 Final Capacity 25 | 8 25 25 Final Carried 19 | 2 19 19 Class Distribution -------------------- 100% | Mutant Dominant Class ---------------- Mutant | -10/Materials Mutant | -10/Subcaves Resources | -11 -10 -10 ----------- Run | Yrd Mat Sub Matter Collected 614 | 247 133 234 Remotely . | . . . Salvage Created 585 | . 365 220 Parts 42 | . 29 13 Haulers Intercepted 1 | . 1 . Recyclers Shooed . | . . . Parts Field Recycled . | . . . Retrieved Matter . | . . . Parts Self-Destructed 11 | . . 11 Prevented . | . . . Parts Restored . | . . . Kills | -11 -10 -10 ------- Run | Yrd Mat Sub Combat Hostiles Destroyed 21 | . 13 8 Guns 20 | . 13 7 AOE 1 | . . 1 Classes Destroyed 8 | . 5 3 Worker 1 | . 1 . Hauler 1 | . 1 . Recycler 1 | . 1 . Swarmer 6 | . 6 . Grunt 11 | . 7 4 Sentry 1 | . . 1 Subdweller 3 | . . 3 Scientist 1 | . . 1 Best Kill Streak 6 | . 6 2 Combat Bots Only 6 | . 6 2 Max Kills in Single Turn 2 | . 2 1 Gunslinging 1 | . 1 . Exploded 1 | . . 1 Melee . | . . . Uniques/NPCs Destroyed . | . . . Combat | -11 -10 -10 -------- Run | Yrd Mat Sub Hostile Shots Fired 78 | . 45 33 Missed 18 | . 10 8 Hits 60 | . 35 25 Projectile 60 | . 35 25 AOE 1 | . . 1 Critical Strikes 1 | . . 1 Actively Blocked 1 | . . 1 Damage Taken 1067 | . 528 539 Core 251 | . 78 173 Absorbed by Shields . | . . . Redirected to Shielding 43 | . 17 26 Core Remaining (%) 100 | 100 . . Volleys Fired 59 | 1 35 23 Largest 2 | 2 2 2 Hottest 130 | 60 130 130 Shots Fired 109 | 2 67 40 Gun 104 | 2 67 35 Cannon . | . . . Launcher 5 | . . 5 Special . | . . . Kinetic 12 | 1 6 5 Thermal 97 | 1 61 35 Explosive . | . . . Electromagnetic . | . . . Robot Hit Streak 13 | 1 13 9 Robot Miss Streak 10 | 1 10 6 Penetration Max . | . . . Secondary Targets 2 | . 2 . Max Gunslinging Chain 1 | . 1 . Shots Hit Robots 79 | 1 50 28 Core Hits 96 | 1 62 33 Critical Kills . | . . . Critical Parts Destroyed . | . . . Critical Strikes . | . . . Melee Attacks . | . . . Impact . | . . . Slashing . | . . . Piercing . | . . . Sneak Attacks . | . . . Combat Hostiles . | . . . Follow-up Attacks . | . . . Damage Inflicted 1296 | 6 796 494 Guns 1029 | 6 609 414 Cannons . | . . . Explosions 267 | . 187 80 Melee . | . . . Ramming . | . . . Kinetic 98 | 6 12 80 Thermal 1011 | . 597 414 Explosive 187 | . 187 . Electromagnetic . | . . . Impact . | . . . Slashing . | . . . Piercing . | . . . Highest Corruption . | . . . Average Corruption . | . . . Corruption Purged . | . . . Corruption Blocked . | . . . Overload Shots . | . . . Overflow Damage 45 | . 45 . Projectiles . | . . . Explosions 45 | . 45 . Melee . | . . . Knockbacks . | . . . Impact . | . . . Kinetic . | . . . Secondary . | . . . Self-Inflicted Damage 140 | . 114 26 Shots 2 | . 1 1 Rammed . | . . . Targets Rammed . | . . . Kicked . | . . . Crushed . | . . . Highest Temperature 375 | 20 375 90 Average Temperature 130 | 15 155 33 Received Heat Transfer 273 | . 174 99 Effects 4 | . 4 . Energy Bleed 1 | . 1 . Interference 3 | . 3 . Siege Activations . | . . . Martial Activations . | . . . Shielding Activations . | . . . Robots Disrupted . | . . . Combat Hostiles . | . . . Robots Corrupted . | . . . Combat Hostiles . | . . . Parts Fried . | . . . Impact Corruptions . | . . . Robots Melted . | . . . Combat Hostiles . | . . . Parts Melted . | . . . Heat Transferred 1255 | . 755 500 Parts Sabotaged . | . . . Parts Stolen . | . . . Parts Stripped . | . . . Power Chain Reactions . | . . . Alert | -11 -10 -10 ------- Run | Yrd Mat Sub Maximum Alert Level . | . . . Low Security (%) 100 | 100 100 . Level 1 . | . . . Level 2 . | . . . Level 3 . | . . . Level 4 . | . . . Level 5 . | . . . High Security . | . . . Max Security . | . . . Peak Influence 193 | . 193 . Initial . | . . . Average 99 | . 108 . Influence Increases 515 | . 395 120 Destroy 0b10 Robot/C 360 | . 260 100 Destroy 0b10 Robot/NC 15 | . 15 . Destroy Leader 72 | . 52 20 Successful Hack 7 | . 7 . Disable Machine 15 | . 15 . Destroy Structure 31 | . 31 . Partial Spotted 15 | . 15 . Influence Decreases 487 | . 322 165 Entered New Map 36 | . . 36 Time Decay 411 | . 302 109 Lost Part 40 | . 20 20 Squads Dispatched 2 | . 2 . Investigation . | . . . Extermination . | . . . Reinforcement 2 | . 2 . Assault . | . . . Garrison . | . . . Intercept . | . . . Searches Triggered . | . . . Construction Impeded . | . . . Haulers Reinforced . | . . . Active Scanning Responses . | . . . Cargo Convoy Interrupts . | . . . Stealth | -11 -10 -10 --------- Run | Yrd Mat Sub Distress Signals 1 | . 1 . Communications Jammed . | . . . Distress Signals . | . . . Times Spotted 31 | . 23 8 Peak Tracking Total 5 | . 5 2 Tactical Retreats . | . . . Traps | -11 -10 -10 ------- Run | Yrd Mat Sub Traps Triggered 1 | . 1 . Indirectly . | . . . Trap Hack Attempts . | . . . Triggered . | . . . Disarmed . | . . . Reprogrammed . | . . . Reused . | . . . Traps Extracted . | . . . Installed . | . . . Triggered . | . . . Machines | -11 -10 -10 ---------- Run | Yrd Mat Sub Machines Disabled 1 | . 1 . Max in Single Turn 1 | . 1 . Machines Repaired . | . . . Machines Dismantled . | . . . Machines Sabotaged . | . . . Overloaded Fab Kills . | . . . Hacking | -11 -10 -10 --------- Run | Yrd Mat Sub Machines Accessed 2 | . 2 . Terminals 2 | . 2 . Fabricators . | . . . Repair Stations . | . . . Recycling Units . | . . . Scanalyzers . | . . . Garrison Access . | . . . Total Hacks 3 | . 3 . Successful 2 | . 2 . Failed 1 | . 1 . Catastrophic . | . . . Database Lockouts . | . . . Manual . | . . . Terminals 3 | . 3 . Fabricators . | . . . Repair Stations . | . . . Recycling Units . | . . . Scanalyzers . | . . . Garrison Access . | . . . Terminal Hacks 2 | . 2 . Alert Level 1 | . 1 . Security Status 1 | . 1 . Fabricator Hacks . | . . . Repair Station Hacks . | . . . Recycling Unit Hacks . | . . . Scanalyzer . | . . . Garrison Access Hacks . | . . . Unauthorized Hacks . | . . . Terminals . | . . . Fabricators . | . . . Repair Stations . | . . . Recycling Units . | . . . Scanalyzers . | . . . Garrison Access . | . . . Data Cores Recovered . | . . . Used . | . . . Hacking Detections 1 | . 1 . Full Trace Events . | . . . Feedback Events . | . . . Feedback Blocked . | . . . Robot Schematics Acquired . | . . . Robots Built . | . . . Authchips . | . . . Time . | . . . Total Robot Build Rating . | . . . Part Schematics Acquired . | . . . Parts Built . | . . . Authchips . | . . . Time . | . . . Total Part Build Rating . | . . . Part Studies Acquired . | . . . Parts Repaired . | . . . Time . | . . . Parts Recycled . | . . . Recycled Matter . | . . . Retrieved Matter . | . . . Retrieved Components . | . . . Parts Scanalyzed . | . . . Part Schematics Acquired . | . . . Parts Damaged . | . . . Bothacking | -11 -10 -10 ------------ Run | Yrd Mat Sub Used RIF Installer . | . . . Robots Hacked . | . . . Non-combat . | . . . Combat . | . . . Robot Hacks Applied . | . . . Relay Couplers Released . | . . . Fabnet Peak Effective % . | . . . Robots Rewired . | . . . Allies Hacked . | . . . Hacks Repelled . | . . . Allies | -11 -10 -10 -------- Run | Yrd Mat Sub Total Allies . | . . . Largest Group . | . . . Highest-Rated Group . | . . . Highest-Rated Ally . | . . . Total Orders . | . . . Ally Attacks . | . . . Total Damage . | . . . Kills . | . . . Allies Corrupted . | . . . Allies Melted . | . . . Intel | -11 -10 -10 ------- Run | Yrd Mat Sub Active Infowar (turns) . | . . . Robot Analysis Total . | . . . Derelict Logs Recovered . | . . . Drone Launches . | . . . Drone Recoveries . | . . . Exploration | -11 -10 -10 ------------- Run | Yrd Mat Sub Turns Passed 2359 | 75 769 1515 Spaces Moved 1294 | 46 289 959 Core 10 | 10 . . Treads 134 | 36 98 . Legs . | . . . Wheels 1150 | . 191 959 Hover . | . . . Flight . | . . . Fastest Speed 50 | 50 115 129 Average Speed 148 | 136 152 148 Slowest Speed 175 | 160 175 175 Overloaded Moves . | . . . Propulsion Burnouts . | . . . Robots Hopped . | . . . Potential Cave-ins . | . . . Cave-ins Triggered . | . . . Exploration Rate (%) 37 | 3 59 50 Regions Visited 2 Branch Regions 1 Pre-discovered Areas . | . . . Known Exits Taken . | . . . Unknown Exits Taken 2 | 1 1 . Scrap Searched . | . . . Spaces Dug 14 | . . 14 Terrain Destroyed 93 | . 28 65 Melee . | . . . Projectile . | . . . AOE 93 | . 28 65 Terrain Rammed . | . . . Walls Destroyed . | . . . Machines Disabled . | . . . Actions | -11 -10 -10 --------- Run | Yrd Mat Sub Total 1610 | 54 551 1005 Wait 206 | . 199 7 Move 1292 | 45 288 959 Hop . | . . . Pick Up 22 | 2 18 2 Fast Attach 11 | 6 3 2 Attach 4 | . 1 3 Detach . | . . . Swap 12 | . 4 8 Drop 4 | . 3 1 Fire 59 | 1 35 23 Melee . | . . . Ram . | . . . Kick . | . . . Crush . | . . . Escape Stasis . | . . . Rewire . | . . . Trap . | . . . Miscellaneous . | . . . Route ------- -11/Scrapyard -10/Materials (discovered 3 exits: [*Mat] / [*Min] / [*Sub]) -10/Subcaves (discovered 2 exits: [*Mat x2]) History --------- Turn | Location | Event 4 | -11/Scrapyard | Discovered new exit (range 15) 76 | -11/Scrapyard | Entered Materials 317 | -10/Materials | Build established: Mutant 423 | -10/Materials | Discovered new exit (range 8) 598 | -10/Materials | Discovered new exit (range 10) 823 | -10/Materials | Discovered new exit (range 7) 845 | -10/Materials | Entered Subcaves 846 | -10/Subcaves | Approached by a straggling Scientist 1490 | -10/Subcaves | Shifting Twisted Machinery released Scrap Shield 1502 | -10/Subcaves | Shifting Twisted Machinery released Sub. Monowheel 1525 | -10/Subcaves | Core integrity fell below 50% 1557 | -10/Subcaves | Discovered new exit (range 9) 2158 | -10/Subcaves | A swath of the cavern ceiling suddenly collapsed 2184 | -10/Subcaves | Core integrity fell below 20% 2298 | -10/Subcaves | Discovered new exit (range 15) 2360 | -10/Subcaves | Destroyed by 5G-ZN9(R) with Subdweller Shrapnel Launcher Last Messages --------------- UH-HI5(c): "I think it's somewhere northeast of here" 01843_ UH-HI5(c) destroyed. 01847_ Sub. Power Source shoots sparks and powers down. 02015_ Subatomizers dissect the Sub. Laser, destroying it. 02022_ Acquired 12 matter. 02036_ Acquired 23 matter. 02150_ Acquired 29 matter. A swath of the cavern ceiling suddenly collapses. 02189_ G-47 Trooper destroyed. 02212_ Acquired 21 matter. 02273_ Y-45 Defender destroyed. 02276_ G-34 Mercenary destroyed. 02281_ Subatomizers dissect the Imp. Ion Engine. 02282_ Imp. Ion Engine fries itself beyond repair. 02286_ Beam Rifle fries itself beyond repair. 02287_ Ion Engine fries itself beyond repair. 02287_ Acquired 24 matter. 02290_ Aluminum Leg fries itself beyond repair. 02298_ EXIT=FOUND 02360_ Spread Laser destroyed. Map ----- +----------------------------------------------------+ | | | ?????????????????????????????????????????????????? | | ?????????????????????????????????????????????????? | | ?????????????????????????????????????????????????? | | ?????????????????????????????????????????????????? | | ?????????????????????????????????????????????????? | | ?????????????????????????????????????????????????? | | ?????????????????????????????????????????????????? | | ?????????????????????????????????????????????????? | | ?????????????????????????????????????????????????? | | ?????????????????????????????????????????????????? | | ?????????????????????????????????????????????????? | | ?????????????????????????????????????????????????? | | ?????????????????????????????????????????????????? | | ?????????????????????????????????????????????????? | | ?????????????????????????????????????????????????? | | ?????????????????????????????????????????????????? | | ?????????????????????????????????????????????????? | | ????????????######???????????????????????????????? | | ???????????##"## ###?????????????????????????????? | | ???????????#" #???##????????????????????????? | | ?????????#"""## # #???? ##??????????????????????? | | ????????"""""" ###### #?######???????????????? | | ???????? """" ; #;""# ### #???????????????? | | ???????? """ # # ; ;# #???????????????? | | ????????# #### R @ < #???????????????? | | ???????# ###??# ; ; ## ##???????????????? | | ??????????????## ;;;;## ## #????????????????? | | ??????????????# ;; ??###### ##???????????????? | | ??????????????# ##???????# #???????????????? | | ??????????????## #??####???## ##???????????????? | | ?????????????? #??# ##?# #????????????????? | | ????????????? ???# ## #????????????????? | | ????????????? # ???# ##???????????????? | | ????????????? ## ???# ### ##??????????????? | | ???????????? ??## ???????## ##?????????????? | | ??????????? ????# ????????## #?????????????? | | ??????????? ?????#?????????# ###?????????????? | | ???????????????????????????# ##??????????????? | | ??????????????????????????## #??????????????? | | ?????????????????????????## #??????????????? | | ?????????????????????????# #??????????????? | | ????????????????????????## #??????????????? | | ??????????????????????### #??????????????? | | ?????????????????????## #??????????????? | | ????????????????????## ##??????????????? | | ????????????????????# ##???????????????? | | ????????????????????# % ##???????????????? | | ????????????????????## #???????????????? | | ????????????????###### ##??????????????? | +----------------------------------------------------+ Best States ------------- Heat Dissipation 35 Energy Generation 15 Energy Capacity 250 Matter Stores 300 Matter Capacity 300 Sight Range 16 Terrain Scan Density 10 Core Shielding 20 Evasion (%) 40 Recoil Reduction 2 Item Schematics ----------------- None Robot Schematics ------------------ None Fabricated ------------ Nothing Repaired ---------- Nothing Studied --------- None Alien Tech Used ----------------- None Achievements -------------- None Challenges ------------ None Game ------ Seed FlightSmallAutominer Manual? 0 Play Time 00:10:33 Cumulative 446.2 hours Start 2026.04.07 @ 22:35:11 End 2026.04.07 @ 22:41:56 Sessions 1 Manual Loads 0 Difficulty Rogue Special Mode None Game No. 398 Rogue 362 Adventurer 36 Explorer 0 Win Type - Total 18 Types 9/0/9/0/0/0/0/0/0/0 Lore% 73 Gallery% 83 Achievement% 66 Wizard Run 0 Options --------- Layout 0 ASCII 0 Keyboard 0 Movement Mouse Keybinds 0 Fullscreen 1 Font 18/SmallcapsGlow Map View 76x50 Zoom Use 0% Tactical HUD 1 Map Filters NONE Filters NONE Steam 1 RUN: fc8e949d-de0f-4977-9c56-814e7ad6d1b6